bitfinex/quotes_BTCUSD_20260127
["timestamp","ask_amount","ask_price","bid_price","bid_amount"]
[1769545257622,0.00046379,89230.0,89184.0,0.02341687]
[1769545258270,0.23358815,89229.0,89184.0,0.02341687]
[1769545258471,0.22415907,89223.0,89173.0,0.08711317]
[1769545258631,0.23358815,89221.0,89174.0,0.08711317]
[1769545258833,0.05604443,89215.0,89175.0,0.02341687]
[1769545259072,0.05604249,89219.0,89175.0,0.02341687]
[1769545259273,0.05604138,89220.0,89175.0,0.02341687]
[1769545259470,0.45774161,89225.0,89175.0,0.02341687]
[1769545259678,0.28962652,89225.0,89176.0,0.24035358]
[1769545259925,0.00046379,89230.0,89182.0,0.24035358]
[1769545260068,0.00046379,89230.0,89183.0,0.02341687]
[1769545260438,0.05603569,89229.0,89186.0,0.0762413]
[1769545260571,0.23405194,89230.0,89186.0,0.0762413]
[1769545260777,0.00046379,89230.0,89200.0,0.0762413]
[1769545260986,0.00200856,89241.0,89231.0,0.00939709]
[1769545261194,0.00095198,89234.0,89231.0,0.00939709]
[1769545261422,0.00095198,89234.0,89208.0,0.05604877]
[1769545261648,0.00095198,89234.0,89205.0,0.02341687]
[1769545261888,0.00095198,89234.0,89200.0,0.0762413]
[1769545262092,0.05603394,89232.0,89201.0,0.0762413]
[1769545262301,0.00095198,89234.0,89189.0,0.08733788]
[1769545262302,0.0245989,89234.0,89189.0,0.08733788]
[1769545262521,0.0245989,89234.0,89186.0,0.0762413]
[1769545262522,0.02364692,89230.0,89186.0,0.16357918]
[1769545262728,0.02364692,89230.0,89168.0,0.16228319]
[1769545262729,0.23358815,89228.0,89181.0,0.08733788]
[1769545262904,0.00095198,89234.0,89175.0,0.08733788]
[1769545262905,0.02364692,89225.0,89175.0,0.08733788]
[1769545263164,0.10883241,89224.0,89172.0,0.08733788]
[1769545263392,0.10883241,89224.0,89153.0,0.24035358]
[1769545263393,0.23358815,89203.0,89168.0,0.08733788]
[1769545263606,0.02364692,89206.0,89167.0,0.16357918]
[1769545263810,0.02364692,89206.0,89181.0,0.0762413]
[1769545264019,0.23358815,89217.0,89181.0,0.0762413]
[1769545264639,0.23358815,89217.0,89181.0,0.07670509]
[1769545264850,0.23358815,89217.0,89181.0,0.07558509]
[1769545265271,0.05604049,89222.0,89181.0,0.07558509]
[1769545265490,0.02364692,89223.0,89181.0,0.07558509]
[1769545265707,0.25723507,89223.0,89181.0,0.07558509]
[1769545265923,0.33065488,89220.0,89181.0,0.07558509]
[1769545266147,0.02364692,89220.0,89184.0,0.0762413]
[1769545266340,0.02692,89229.0,89198.0,0.0762413]
[1769545266549,0.23358815,89232.0,89198.0,0.0762413]
[1769545266768,0.02364692,89236.0,89215.0,0.0762413]
[1769545267036,0.02364692,89236.0,89200.0,0.33065488]
[1769545267037,0.02692,89243.0,89200.0,0.33065488]
[1769545267251,0.3543018,89240.0,89201.0,0.0762413]
[1769545267460,0.02692,89243.0,89215.0,0.0762413]
[1769545267892,0.02692,89243.0,89201.0,0.0762413]
[1769545267893,0.05056692,89243.0,89201.0,0.0762413]
[1769545268132,0.00095198,89234.0,89201.0,0.0762413]
[1769545268552,0.05603816,89225.0,89185.0,0.08733788]
[1769545268762,0.05603981,89223.0,89181.0,0.08733788]
[1769545268982,0.02364692,89223.0,89181.0,0.08733788]
[1769545269189,0.02364692,89223.0,89200.0,0.33065488]
[1769545269446,0.00075198,89234.0,89223.0,0.00939709]
[1769545269728,0.0029411,89254.0,89223.0,0.00939709]
[1769545269974,0.0029411,89254.0,89223.0,0.00953617]
[1769545270489,0.0002,89263.0,89241.0,8.7e-07]
[1769545270703,0.0002,89263.0,89223.0,0.00953617]
[1769545270926,0.23358815,89258.0,89223.0,0.00953617]
[1769545271144,0.02364692,89252.0,89223.0,0.00953617]
[1769545272434,0.23358815,89274.0,89223.0,0.00953617]
[1769545272637,0.02364692,89266.0,89230.0,0.33065488]
[1769545272840,0.02364692,89266.0,89225.0,0.05603764]
[1769545273051,0.02364692,89266.0,89223.0,0.00953617]
[1769545273259,0.02364692,89266.0,89225.0,0.05603756]
[1769545273474,0.02364692,89266.0,89223.0,0.00013908]
[1769545273695,0.02364692,89262.0,89223.0,0.00013908]
[1769545274365,0.0762413,89252.0,89223.0,0.00013908]
[1769545274640,0.0762413,89236.0,89223.0,0.00013908]
[1769545274855,0.0762413,89236.0,89198.0,0.16228319]
[1769545274856,0.00013908,89223.0,89198.0,0.08733788]
[1769545275069,0.0762413,89219.0,89184.0,0.08733788]
[1769545275504,0.02364692,89218.0,89181.0,0.08733788]
[1769545275732,0.02364692,89218.0,89178.0,0.08733788]
[1769545275733,0.0762413,89205.0,89178.0,0.08733788]
[1769545275950,0.0762413,89205.0,89152.0,0.21636948]
[1769545275951,0.02364692,89202.0,89174.0,0.08733788]
[1769545276169,0.02364692,89202.0,89161.0,0.08733788]
[1769545276170,0.02364692,89201.0,89161.0,0.08733788]
[1769545276812,0.02364692,89201.0,89168.0,0.08733788]
[1769545277044,0.02364692,89201.0,89161.0,0.12982655]
[1769545277045,0.02364692,89201.0,89170.0,0.33065488]
[1769545277471,0.02364692,89201.0,89171.0,0.22428731]
[1769545277702,0.02364692,89201.0,89155.0,0.33649175]
[1769545277703,0.0055517,89171.0,89149.0,0.16228319]
[1769545277924,0.0055517,89171.0,89164.0,0.0762413]
[1769545278377,0.02364692,89187.0,89164.0,0.0762413]
[1769545278602,0.33065488,89210.0,89164.0,0.0762413]
[1769545278603,0.14208,89207.0,89181.0,0.0762413]
[1769545278811,0.02364692,89205.0,89164.0,0.0762413]
[1769545279019,0.02364692,89203.0,89164.0,0.0762413]
[1769545279248,0.02364692,89202.0,89164.0,0.07638042]
[1769545280340,0.05605359,89201.0,89164.0,0.07638042]
[1769545280546,0.02364692,89202.0,89164.0,0.07638042]
[1769545281225,0.02364692,89202.0,89170.0,0.33065488]
[1769545281433,0.02364692,89202.0,89164.0,0.07638042]
[1769545281643,0.02358292,89202.0,89165.0,0.24035358]
[1769545281868,0.02358292,89202.0,89164.0,0.07638042]
[1769545282087,0.02358292,89202.0,89165.0,0.24035358]
[1769545282338,0.02358292,89202.0,89178.0,0.0762413]
[1769545282555,0.14208,89207.0,89178.0,0.31659488]
[1769545283187,0.1310069,89202.0,89178.0,0.31659488]
[1769545283440,0.20487156,89245.0,89192.0,0.0762413]
[1769545283674,0.1152,89231.0,89193.0,0.2141841]
[1769545283884,0.33596729,89230.0,89193.0,0.2141841]
[1769545284086,0.02469724,89228.0,89193.0,0.2141841]
[1769545284502,0.0239336,89229.0,89194.0,0.0762413]
[1769545284654,0.05603882,89224.0,89194.0,0.0762413]
[1769545284837,0.33065488,89220.0,89180.0,0.0762413]
[1769545285241,0.01425835,89227.0,89194.0,0.0762413]
[1769545285428,0.00046351,89228.0,89195.0,0.20562216]
[1769545286446,0.00046351,89228.0,89202.0,0.0762413]
[1769545286933,0.00046351,89228.0,89180.0,0.40689618]
[1769545286934,0.0239336,89227.0,89196.0,0.0762413]
[1769545287062,0.0239336,89224.0,89196.0,0.0762413]
[1769545287605,0.00046351,89228.0,89182.0,0.20562216]
[1769545287606,0.05603938,89223.0,89197.0,0.0762413]
[1769545287809,0.0239336,89223.0,89182.0,0.20562216]
[1769545288238,0.00046351,89228.0,89168.0,0.0762413]
[1769545288239,0.0239336,89219.0,89168.0,0.0762413]
[1769545288422,0.0239336,89217.0,89168.0,0.0762413]
[1769545288622,0.00531241,89218.0,89168.0,0.28186346]
[1769545288623,0.0239336,89208.0,89168.0,0.28186346]
[1769545288875,0.0239336,89208.0,89171.0,0.20562216]
[1769545289047,0.14212,89218.0,89171.0,0.20562216]
[1769545289261,0.05604466,89215.0,89171.0,0.20562216]
[1769545289579,0.0239336,89217.0,89171.0,0.20562216]
[1769545290235,0.0239336,89217.0,89178.0,0.20562216]
[1769545290350,0.0239336,89217.0,89175.0,0.05606911]
[1769545290567,0.0239336,89217.0,89171.0,0.20562216]
[1769545290985,0.0239336,89217.0,89170.0,0.33065488]
[1769545291192,0.0239336,89217.0,89178.0,0.05606753]
[1769545291388,0.0239336,89217.0,89170.0,0.33065488]
[1769545291389,0.04053896,89217.0,89174.0,0.22428061]
[1769545291716,0.14258351,89228.0,89168.0,0.0762413]
[1769545291717,0.00046351,89228.0,89191.0,0.20562216]
[1769545293416,0.00046351,89228.0,89201.0,0.20562216]
[1769545293829,0.00046351,89228.0,89184.0,0.20562216]
[1769545294030,0.00046351,89228.0,89186.0,0.20562216]
[1769545294347,0.0239336,89227.0,89210.0,0.50136862]
[1769545294578,0.0239336,89225.0,89210.0,0.49581692]
[1769545294942,0.07997202,89225.0,89210.0,0.49581692]
[1769545295143,0.00046351,89228.0,89210.0,0.49581692]
[1769545295974,0.00046351,89228.0,89211.0,0.0762413]
[1769545296393,0.00046351,89228.0,89210.0,0.49581692]
[1769545296792,0.00046351,89228.0,89211.0,0.0762413]
[1769545297018,0.00046351,89228.0,89210.0,0.71350305]
[1769545298903,0.0239336,89227.0,89210.0,0.71350305]
[1769545299654,0.0239336,89227.0,89210.0,0.4942548]
[1769545300274,0.05603909,89224.0,89210.0,0.4942548]
[1769545300498,0.0239336,89223.0,89210.0,0.4942548]
[1769545301185,0.0001145,89225.0,89211.0,0.21768613]
[1769545302064,0.00046351,89228.0,89210.0,0.4942548]
[1769545302286,0.0239336,89235.0,89211.0,0.21768613]
[1769545302515,0.0239336,89235.0,89217.0,0.21768613]
[1769545302516,0.00013898,89235.0,89217.0,0.21768613]
[1769545302719,0.0239336,89248.0,89217.0,0.21768613]
[1769545302720,0.0239336,89248.0,89217.0,0.21765833]
[1769545302919,0.0239336,89248.0,89217.0,0.21812184]
[1769545303178,0.0239336,89243.0,89217.0,0.21812184]
[1769545303732,0.0239336,89243.0,89210.0,0.4942548]
[1769545303938,0.0239336,89228.0,89210.0,0.4942548]
[1769545304147,0.00531241,89239.0,89210.0,0.4942548]
[1769545304323,0.0239336,89230.0,89210.0,0.4942548]
[1769545304737,0.0239336,89234.0,89210.0,0.4942548]
[1769545304973,0.0762413,89255.0,89210.0,0.4942548]
[1769545304974,0.0239336,89224.0,89210.0,0.4942548]
[1769545305177,0.0239336,89225.0,89210.0,0.4942548]
[1769545305477,0.0239336,89220.0,89210.0,0.4942548]
[1769545306476,0.0239336,89230.0,89210.0,0.4942548]
[1769545306685,0.00531241,89229.0,89210.0,0.4942548]
[1769545306882,0.0560378,89226.0,89210.0,0.4942548]
[1769545307084,0.0239336,89228.0,89210.0,0.4942548]
[1769545307288,0.0239336,89227.0,89210.0,0.4942548]
[1769545307528,0.05603784,89226.0,89210.0,0.4942548]
[1769545307709,0.05603944,89223.0,89210.0,0.4942548]
[1769545307956,0.05603944,89223.0,89182.0,0.0762413]
[1769545307957,0.33043771,89220.0,89172.0,0.21765833]
[1769545308162,0.33043771,89220.0,89182.0,0.21765833]
[1769545308163,0.05604624,89213.0,89182.0,0.21765833]
[1769545308382,0.05604813,89210.0,89182.0,0.21765833]
[1769545308589,0.0239336,89209.0,89182.0,0.21765833]
[1769545308988,0.0239336,89209.0,89183.0,0.0762413]
[1769545309107,0.0239336,89209.0,89184.0,0.21765833]
[1769545309313,0.0239336,89209.0,89184.0,0.21779731]
[1769545310417,0.0239336,89219.0,89184.0,0.21779731]
[1769545310616,0.05604187,89219.0,89184.0,0.21779731]
[1769545310824,0.05604684,89212.0,89184.0,0.21779731]
[1769545311027,0.0239336,89210.0,89184.0,0.21779731]
[1769545311225,0.0239336,89209.0,89184.0,0.21779731]
[1769545312603,0.55821244,89251.0,89186.0,0.21765833]
[1769545312826,0.1152,89233.0,89191.0,0.21765833]
[1769545313042,0.05603465,89231.0,89193.0,0.21765833]
[1769545313261,0.00531241,89230.0,89193.0,0.21765833]
[1769545313466,0.02273983,89229.0,89193.0,0.21765833]
[1769545313935,0.02273983,89229.0,89193.0,0.24125523]
[1769545314137,0.02273983,89229.0,89200.0,0.21765833]
[1769545314340,0.02924601,89231.0,89200.0,0.21765833]
[1769545314922,0.02454273,89230.0,89200.0,0.21765833]
[1769545315144,0.33043771,89230.0,89200.0,0.21765833]
[1769545315342,0.02454273,89225.0,89200.0,0.21765833]
[1769545315542,0.02454273,89224.0,89200.0,0.21765833]
[1769545316646,0.00531241,89232.0,89200.0,0.21765833]
[1769545317065,0.1152,89233.0,89200.0,0.21765833]
[1769545317995,0.1152,89233.0,89202.0,0.056052]
[1769545318205,0.1152,89233.0,89203.0,0.21765833]
[1769545318412,0.1152,89233.0,89202.0,0.0235969]
[1769545318413,0.02454273,89248.0,89212.0,0.0235969]
[1769545318596,0.02454273,89248.0,89211.0,0.0762413]
[1769545318597,0.02454273,89248.0,89215.0,0.21227433]
[1769545319497,0.02454273,89246.0,89215.0,0.21227433]
[1769545319707,0.02454273,89246.0,89206.0,0.0235969]
[1769545319918,0.02454273,89246.0,89211.0,0.21227433]
[1769545320164,0.02454273,89246.0,89215.0,0.0762413]
[1769545320381,0.00046371,89248.0,89217.0,0.21227433]
[1769545320597,0.00046371,89248.0,89219.0,0.23587123]
[1769545320806,0.00046371,89248.0,89209.0,0.13167096]
[1769545321038,0.00046371,89248.0,89217.0,0.21227433]
[1769545321499,0.00046371,89248.0,89220.0,0.0235969]
[1769545321713,0.00046371,89248.0,89223.0,0.21227433]
[1769545325705,0.02454273,89247.0,89223.0,0.21227433]
[1769545325857,0.02500644,89248.0,89223.0,0.21227433]
[1769545326424,0.00046371,89248.0,89223.0,0.21227433]
[1769545326645,0.0562153,89263.0,89211.0,0.1914013]
[1769545326646,0.0002,89263.0,89249.0,0.21218159]
[1769545326849,0.00033903,89263.0,89249.0,0.21218159]
[1769545327049,0.00033903,89263.0,89231.0,0.11516]
[1769545327050,0.02488176,89263.0,89232.0,0.19060082]
[1769545327465,0.02454273,89257.0,89232.0,0.19060082]
[1769545327668,0.05602239,89251.0,89217.0,0.19060082]
[1769545327963,0.00531241,89257.0,89215.0,0.19060082]
[1769545327964,0.02454273,89250.0,89215.0,0.19060082]
[1769545328364,0.02454273,89247.0,89215.0,0.19060082]
[1769545328567,0.02454273,89241.0,89215.0,0.19060082]
[1769545328765,0.00531241,89246.0,89196.0,0.13167096]
[1769545328990,0.12520236,89239.0,89196.0,0.19060082]
[1769545329190,0.05603776,89226.0,89196.0,0.19060082]
[1769545329365,0.02454273,89225.0,89196.0,0.19060082]
[1769545330190,0.02454273,89225.0,89190.0,0.33043771]
[1769545330409,0.02464133,89225.0,89194.0,0.02381705]
[1769545330572,0.02464133,89225.0,89195.0,0.19060082]
[1769545330777,0.14208,89244.0,89190.0,0.33043771]
[1769545330778,0.02454273,89240.0,89210.0,0.33043771]
[1769545330980,0.02454273,89240.0,89211.0,0.19060082]
[1769545331581,0.02454273,89240.0,89211.0,0.21441787]
[1769545331794,0.02454273,89250.0,89213.0,0.19060082]
[1769545331994,0.02454273,89249.0,89213.0,0.19060082]
[1769545333096,0.02454273,89249.0,89214.0,0.02381705]
[1769545333308,0.02454273,89249.0,89210.0,0.05651093]
[1769545333309,0.02454273,89249.0,89217.0,0.19060082]
[1769545333533,0.06160733,89284.0,89210.0,0.33090142]
[1769545333534,0.02454273,89261.0,89230.0,0.33043771]
[1769545333869,0.02454273,89261.0,89211.0,0.0762413]
[1769545333870,0.05665864,89264.0,89234.0,0.19060082]
[1769545334068,0.02454273,89262.0,89234.0,0.19060082]
[1769545334410,0.000645,89264.0,89234.0,0.19060082]
[1769545334609,0.000645,89264.0,89235.0,0.19060082]
[1769545335297,0.05601738,89258.0,89235.0,0.19060082]
[1769545335502,0.05601912,89256.0,89222.0,0.19060082]
[1769545335693,0.02454273,89255.0,89222.0,0.19060082]
[1769545336127,0.05602126,89252.0,89222.0,0.19060082]
[1769545336321,0.02454273,89258.0,89222.0,0.19060082]
[1769545336542,0.02454273,89257.0,89215.0,0.11516]
[1769545336783,0.0762413,89256.0,89224.0,0.19060082]
[1769545336953,0.0762413,89256.0,89226.0,0.19060082]
[1769545337573,0.10078403,89256.0,89226.0,0.19060082]
[1769545337715,0.02454273,89254.0,89226.0,0.19060082]
[1769545338972,0.0762413,89259.0,89228.0,0.19060082]
[1769545339171,0.02454273,89258.0,89230.0,0.19060082]
[1769545339371,0.0762413,89259.0,89231.0,0.00047844]
[1769545339654,0.02454273,89252.0,89231.0,0.00047844]
[1769545339851,0.0762413,89245.0,89231.0,0.00047844]
[1769545340054,0.02454273,89252.0,89232.0,0.00047841]
[1769545340292,0.00047841,89232.0,89216.0,0.19060082]
[1769545340505,0.02454273,89242.0,89216.0,0.19060082]
[1769545340708,0.02454273,89254.0,89221.0,0.19060082]
[1769545341453,0.02454273,89254.0,89221.0,0.07985729]
[1769545341806,0.02454273,89254.0,89222.0,0.21441787]
[1769545342168,0.02454273,89254.0,89223.0,0.19060082]
[1769545342169,0.02447873,89254.0,89223.0,0.19060082]
[1769545342983,0.08155371,89258.0,89223.0,0.19060082]
[1769545342984,0.05602121,89252.0,89223.0,0.19060082]
[1769545343187,0.02442599,89251.0,89214.0,0.17993121]
[1769545343571,0.02442599,89251.0,89214.0,0.20444462]
[1769545343823,0.05601824,89257.0,89214.0,0.20444462]
[1769545343824,0.02442599,89243.0,89214.0,0.17993121]
[1769545344225,0.02442599,89243.0,89210.0,0.33090142]
[1769545344226,0.02442599,89255.0,89221.0,0.17993121]
[1769545344428,0.02316396,89253.0,89217.0,0.02313494]
[1769545344602,0.06458964,89262.0,89210.0,0.33090142]
[1769545344603,0.09940526,89269.0,89241.0,0.17493164]
[1769545344809,0.09940526,89269.0,89253.0,0.00942199]
[1769545345230,0.09940526,89269.0,89250.0,0.17493164]
[1769545345797,0.00033904,89263.0,89250.0,0.17493164]
[1769545346944,0.00033904,89263.0,89242.0,0.0030719]
[1769545347098,0.00033904,89263.0,89243.0,0.00307188]
[1769545347302,0.00033904,89263.0,89243.0,0.17800352]
[1769545347508,0.02316396,89262.0,89243.0,0.00307188]
[1769545347705,0.02316396,89262.0,89237.0,0.17493164]
[1769545347914,0.02316396,89262.0,89239.0,0.17493164]
[1769545348112,0.02316396,89262.0,89241.0,0.17493164]
[1769545348450,0.02316396,89262.0,89241.0,0.17800345]
[1769545348647,0.02316396,89262.0,89226.0,0.02313494]
[1769545348648,0.02316396,89262.0,89242.0,0.0030718]
[1769545348846,0.02316396,89262.0,89241.0,0.17493164]
[1769545349147,0.02316396,89262.0,89242.0,0.00307225]
[1769545349543,0.02316396,89262.0,89242.0,0.17800389]
[1769545351031,0.02316396,89262.0,89242.0,0.00307225]
[1769545351320,0.02316396,89262.0,89233.0,0.17493164]
[1769545351475,0.02316396,89262.0,89234.0,0.17800421]
[1769545351927,0.00033904,89263.0,89234.0,0.17800421]
[1769545351928,0.02316396,89254.0,89234.0,0.00307257]
[1769545352078,0.02316396,89254.0,89220.0,0.13167096]
[1769545352079,0.02316396,89254.0,89222.0,0.17493164]
[1769545352295,0.02316396,89254.0,89210.0,0.33043771]
[1769545352296,0.02316396,89254.0,89217.0,0.19806658]
[1769545352526,0.05602151,89252.0,89219.0,0.17493164]
[1769545352682,0.05602151,89252.0,89208.0,0.11512]
[1769545352683,0.02316396,89251.0,89220.0,0.33043771]
[1769545352879,0.02316396,89251.0,89221.0,0.17493164]
[1769545353934,0.02316396,89251.0,89221.0,0.19806658]
[1769545354137,0.00033904,89263.0,89223.0,0.02313494]
[1769545354351,0.02316396,89262.0,89226.0,0.17493164]
[1769545354548,0.09940526,89255.0,89226.0,0.17493164]
[1769545354741,0.02316396,89254.0,89226.0,0.17493164]
[1769545356421,0.0762413,89265.0,89210.0,0.33032329]
[1769545356646,0.0762413,89265.0,89208.0,0.11512]
[1769545356647,0.02316396,89270.0,89254.0,0.00942199]
[1769545356766,0.02316396,89270.0,89248.0,0.17493164]
[1769545356948,0.0762413,89262.0,89248.0,0.17493164]
[1769545357155,0.0762413,89262.0,89220.0,0.33032329]
[1769545357356,0.33032329,89260.0,89224.0,0.02313494]
[1769545357558,0.0762413,89262.0,89225.0,0.17493164]
[1769545357759,0.02316396,89257.0,89225.0,0.17493164]
[1769545358388,0.0762413,89248.0,89225.0,0.17493164]
[1769545358800,0.02316396,89251.0,89225.0,0.17493164]
[1769545359020,0.0762413,89248.0,89225.0,0.17493164]
[1769545360018,0.02316396,89247.0,89225.0,0.17493164]
[1769545360415,0.0762413,89233.0,89225.0,0.17493164]
[1769545360617,0.00057801,89225.0,89200.0,0.19806658]
[1769545360843,0.05603433,89231.0,89200.0,0.17493164]
[1769545361017,0.05603433,89231.0,89189.0,0.17493164]
[1769545361018,0.0762413,89218.0,89189.0,0.17493164]
[1769545361235,0.02316396,89217.0,89189.0,0.17493164]
[1769545361400,0.0560442,89216.0,89189.0,0.17493164]
[1769545361600,0.0762413,89218.0,89172.0,0.17493164]
[1769545361601,0.0762413,89201.0,89172.0,0.17493164]
[1769545362000,0.02316396,89200.0,89174.0,0.17493164]
[1769545362179,0.02316396,89200.0,89176.0,0.17493164]
[1769545362376,0.02316396,89216.0,89200.0,0.00942199]
[1769545362601,0.0762413,89210.0,89200.0,0.00942199]
[1769545362717,0.0762413,89210.0,89197.0,0.17493164]
[1769545362718,0.0762413,89211.0,89197.0,0.17493164]
[1769545362924,0.02316396,89210.0,89183.0,0.17493164]
[1769545363159,0.02316396,89210.0,89184.0,0.00307569]
[1769545363526,0.02316396,89210.0,89185.0,0.17493164]
[1769545363674,0.02316396,89210.0,89186.0,0.00307562]
[1769545364114,0.02316396,89210.0,89187.0,0.17493164]
[1769545364294,0.02316396,89210.0,89188.0,0.00307555]
[1769545364826,0.02316396,89210.0,89189.0,0.17493164]
[1769545365024,0.0762413,89211.0,89191.0,0.17493164]
[1769545365178,0.0762413,89211.0,89192.0,0.00307566]
[1769545365374,0.09940526,89211.0,89192.0,0.00307566]
[1769545365596,0.0762413,89211.0,89185.0,0.1780073]
[1769545365799,0.02316396,89210.0,89185.0,0.1780073]
[1769545366768,0.0762413,89220.0,89186.0,0.02313494]
[1769545366972,0.0762413,89222.0,89210.0,0.00942199]
[1769545367103,0.11516,89230.0,89211.0,0.17493164]
[1769545367305,0.0762413,89224.0,89211.0,0.17493164]
[1769545367505,0.0765321,89229.0,89211.0,0.17493164]
[1769545367688,0.0765321,89229.0,89196.0,0.17493164]
[1769545367689,0.0762413,89215.0,89196.0,0.17493164]
[1769545368302,0.07670466,89215.0,89182.0,0.02313494]
[1769545368514,0.02316396,89214.0,89183.0,0.17493164]
[1769545368918,0.02316396,89214.0,89185.0,0.17493164]
[1769545369121,0.02316396,89214.0,89186.0,0.00112052]
[1769545369536,0.02316396,89211.0,89186.0,0.00112052]
[1769545369744,0.0762413,89201.0,89186.0,0.00112052]
[1769545370604,0.07670466,89215.0,89186.0,0.00112052]
[1769545370605,0.02316396,89214.0,89186.0,0.00112052]
[1769545370800,0.07670466,89215.0,89182.0,0.00112052]
[1769545370801,0.0762413,89200.0,89182.0,0.00112052]
[1769545371002,0.0762413,89200.0,89174.0,0.17493164]
[1769545371003,0.02316396,89199.0,89175.0,0.00112055]
[1769545371616,0.02316396,89199.0,89172.0,0.00112118]
[1769545372487,0.02316396,89199.0,89173.0,0.17493164]
[1769545372683,0.1914013,89207.0,89177.0,0.17493164]
[1769545372939,0.05605042,89206.0,89179.0,0.17493164]
[1769545373178,0.02316396,89192.0,89168.0,0.0001158]
[1769545373391,0.33032329,89210.0,89168.0,0.0001158]
[1769545373392,0.02316396,89213.0,89170.0,0.17493164]
[1769545373567,0.02316396,89213.0,89193.0,0.17493164]
[1769545373568,0.0762413,89206.0,89193.0,0.17493164]
[1769545373719,0.09940526,89206.0,89192.0,0.00942199]
[1769545373920,0.05605295,89202.0,89178.0,0.17605253]
[1769545374164,0.0762413,89192.0,89178.0,0.17605253]
[1769545374372,0.0762413,89192.0,89169.0,0.16866307]
[1769545374517,0.0762413,89192.0,89170.0,0.00113001]
[1769545375155,0.0762413,89192.0,89171.0,0.00225143]
[1769545375359,0.02439961,89191.0,89171.0,0.00225143]
[1769545376004,0.02439961,89191.0,89169.0,0.00225143]
[1769545376802,0.0762413,89192.0,89169.0,0.00225143]
[1769545377016,0.05606043,89190.0,89169.0,0.00225143]
[1769545377238,0.0762413,89178.0,89168.0,0.0001158]
[1769545377666,0.02439961,89187.0,89168.0,0.0001158]
[1769545378091,0.11516,89197.0,89168.0,0.0001158]
[1769545378092,0.0762413,89211.0,89168.0,0.0001158]
[1769545378323,0.0762413,89202.0,89188.0,0.16866307]
[1769545378742,0.0762413,89202.0,89187.0,0.00942199]
[1769545379451,0.0762413,89202.0,89187.0,0.17808506]
[1769545380158,0.0762413,89202.0,89181.0,0.16866307]
[1769545380858,0.00046336,89211.0,89168.0,0.0001158]
[1769545380859,0.00046336,89211.0,89202.0,0.00942199]
[1769545381074,0.02692,89228.0,89203.0,0.16866307]
[1769545381289,0.0762413,89225.0,89207.0,0.16866307]
[1769545381507,0.0762413,89225.0,89209.0,0.16866307]
[1769545381934,0.0762413,89225.0,89203.0,0.00013898]
[1769545382167,0.0762413,89211.0,89203.0,0.00013898]
[1769545382814,0.0762413,89210.0,89203.0,0.00013898]
[1769545383695,0.0762413,89225.0,89203.0,0.00013898]
[1769545383932,0.0762413,89225.0,89203.0,0.16880205]
[1769545384157,0.0762413,89244.0,89203.0,0.16880205]
[1769545384158,0.02692,89238.0,89204.0,0.16866307]
[1769545384378,0.02692,89238.0,89206.0,0.16866307]
[1769545384379,0.0762413,89224.0,89206.0,0.16866307]
[1769545385253,0.0762413,89240.0,89209.0,0.02349949]
[1769545385472,0.0762413,89240.0,89213.0,0.02349949]
[1769545385687,0.0762413,89240.0,89216.0,0.16860491]
[1769545386564,0.0762413,89238.0,89218.0,0.16860491]
[1769545386778,0.0762413,89238.0,89220.0,0.16860491]
[1769545387470,0.02439961,89248.0,89220.0,0.16860491]
[1769545387471,0.0762413,89237.0,89220.0,0.16860491]
[1769545387683,0.33606359,89269.0,89210.0,0.02349949]
[1769545387684,0.0762413,89249.0,89222.0,0.16860491]
[1769545389253,0.0004066,89254.0,89222.0,0.16860491]
[1769545389507,0.0004066,89254.0,89226.0,0.16860491]
[1769545389743,0.0004066,89254.0,89227.0,0.02349949]
[1769545389948,0.0004066,89254.0,89228.0,0.16860491]
[1769545390144,0.0762413,89245.0,89228.0,0.16860491]
[1769545390789,0.0762413,89245.0,89216.0,0.02349949]
[1769545390994,0.0762413,89245.0,89217.0,0.16860491]
[1769545391424,0.0762413,89245.0,89218.0,0.02349949]
[1769545391668,0.0762413,89245.0,89219.0,0.16860491]
[1769545391783,0.05602665,89244.0,89219.0,0.16860491]
[1769545391975,0.02439961,89244.0,89219.0,0.16860491]
[1769545392975,0.08042614,89244.0,89219.0,0.16860491]
[1769545393176,0.02439961,89244.0,89219.0,0.16860491]
[1769545393823,0.0762413,89249.0,89221.0,0.16860491]
[1769545394027,0.0762413,89249.0,89223.0,0.16860491]
[1769545395196,0.02439961,89248.0,89223.0,0.16860491]
[1769545395341,0.02439961,89246.0,89223.0,0.16860491]
[1769545395547,0.08042563,89245.0,89223.0,0.16860491]
[1769545396072,0.05602653,89244.0,89223.0,0.16860491]
[1769545396277,0.02439961,89245.0,89223.0,0.16860491]
[1769545397288,0.0762413,89235.0,89223.0,0.16860491]
[1769545397503,0.08961035,89274.0,89203.0,0.00013898]
[1769545397504,0.11516,89260.0,89235.0,0.00942199]
[1769545397685,0.0762413,89245.0,89236.0,0.16860491]
[1769545398329,0.05601492,89262.0,89226.0,0.02349949]
[1769545398330,0.02439961,89256.0,89226.0,0.02349949]
[1769545398491,0.0002,89263.0,89221.0,0.16860491]
[1769545398856,0.0002,89263.0,89225.0,0.16860491]
[1769545398857,0.00050528,89254.0,89225.0,0.16860491]
[1769545399027,0.00050528,89254.0,89229.0,0.16860491]
[1769545399186,0.00050528,89254.0,89232.0,0.02349949]
[1769545399388,0.0762413,89252.0,89233.0,0.16972538]
[1769545399578,0.0762413,89252.0,89233.0,0.16860491]
[1769545400799,0.02439961,89249.0,89210.0,0.02349949]
[1769545400999,0.02439961,89249.0,89213.0,0.16860491]
[1769545401200,0.02439961,89251.0,89215.0,0.1921044]
[1769545401444,0.13226298,89252.0,89217.0,0.16860491]
[1769545401647,0.02439961,89251.0,89219.0,0.16860491]
[1769545401854,0.02439961,89250.0,89221.0,0.16860491]
[1769545402055,0.08042314,89249.0,89223.0,0.16860491]
[1769545402342,0.0762413,89238.0,89223.0,0.16860491]
[1769545402566,0.0762413,89238.0,89205.0,0.16860491]
[1769545402567,0.05603198,89235.0,89205.0,0.16860491]
[1769545402790,0.05603198,89235.0,89207.0,0.16860491]
[1769545402791,0.05603226,89235.0,89207.0,0.16860491]
[1769545403027,0.10064091,89238.0,89207.0,0.16860491]
[1769545403028,0.0762413,89224.0,89207.0,0.16860491]
[1769545403240,0.0762413,89224.0,89188.0,0.02692]
[1769545403241,0.0762413,89224.0,89196.0,0.16860491]
[1769545403531,0.09945775,89224.0,89196.0,0.16860491]
[1769545403954,0.09945775,89224.0,89195.0,0.02486971]
[1769545403955,0.02321645,89237.0,89199.0,0.0560541]
[1769545404137,0.02321645,89237.0,89203.0,0.02486971]
[1769545404337,0.02321645,89237.0,89206.0,0.19314585]
[1769545405116,0.02321645,89237.0,89207.0,0.02454094]
[1769545405314,0.02321645,89237.0,89210.0,0.16860491]
[1769545405520,0.02321645,89237.0,89210.0,0.19314585]
[1769545405675,0.02321645,89237.0,89210.0,0.02454094]
[1769545405881,0.02321645,89237.0,89211.0,0.16860491]
[1769545406414,0.02275298,89245.0,89213.0,0.16860491]
[1769545406617,0.02275298,89245.0,89199.0,0.00046336]
[1769545406618,0.04967298,89258.0,89223.0,0.16860491]
[1769545406819,0.02692,89258.0,89224.0,0.16860491]
[1769545407021,0.02692,89258.0,89228.0,0.16860491]